[Event "Titled Tuesday Blitz November 07 Early 2023"]
[White "lagunanivaria"]
[Black "Stepanencu, Nicodim-Cosmin"]
[BlackFideId "1256220"]
[WhiteElo "2412"]
[BlackElo "2616"]
[Result "1-0"]
[Round "3"]
[TimeControl "180+1"]
[Date "2023.11.07"]
[WhiteClock "0:00:43"]
[BlackClock "0:00:00"]
[Board "133"]

1. e4 {[%clk 0:03:00]}  e6 {[%clk 0:02:28]} 2. Nf3 {[%clk 0:02:43]}  d5 {[%clk 0:02:28]} 3. Nc3 {[%clk 0:02:43]}  Nf6 {[%clk 0:02:24]} 4. exd5 {[%clk 0:02:42]}  exd5 {[%clk 0:02:24]} 5. d4 {[%clk 0:02:43]}  Bd6 {[%clk 0:02:24]} 6. Bd3 {[%clk 0:02:40]}  h6 {[%clk 0:02:22]} 7. h3 {[%clk 0:02:40]}  O-O {[%clk 0:02:21]} 8. O-O {[%clk 0:02:40]}  Re8 {[%clk 0:02:21]} 9. Ne2 {[%clk 0:02:37]}  c6 {[%clk 0:02:20]} 10. Bf4 {[%clk 0:02:36]}  Be6 {[%clk 0:02:12]} 11. Qd2 {[%clk 0:02:33]}  Ne4 {[%clk 0:02:08]} 12. Bxe4 {[%clk 0:02:25]}  dxe4 {[%clk 0:02:09]} 13. Ne5 {[%clk 0:02:26]}  Qc7 {[%clk 0:01:54]} 14. Bg3 {[%clk 0:02:19]}  Nd7 {[%clk 0:01:51]} 15. Nxd7 {[%clk 0:02:17]}  Qxd7 {[%clk 0:01:52]} 16. Bxd6 {[%clk 0:02:15]}  Qxd6 {[%clk 0:01:35]} 17. Rfe1 {[%clk 0:02:16]}  Rad8 {[%clk 0:01:32]} 18. c3 {[%clk 0:02:15]}  c5 {[%clk 0:01:20]} 19. b3 {[%clk 0:02:06]}  Bc8 {[%clk 0:00:56]} 20. Rad1 {[%clk 0:02:05]}  b6 {[%clk 0:00:56]} 21. Qf4 {[%clk 0:01:52]}  Qxf4 {[%clk 0:00:48]} 22. Nxf4 {[%clk 0:01:53]}  cxd4 {[%clk 0:00:47]} 23. Rxd4 {[%clk 0:01:52]}  Rxd4 {[%clk 0:00:46]} 24. cxd4 {[%clk 0:01:53]}  Bb7 {[%clk 0:00:45]} 25. d5 {[%clk 0:01:46]}  Kh7 {[%clk 0:00:31]} 26. Rd1 {[%clk 0:01:45]}  Rd8 {[%clk 0:00:28]} 27. Rd4 {[%clk 0:01:41]}  g5 {[%clk 0:00:27]} 28. Nh5 {[%clk 0:01:21]}  Kg6 {[%clk 0:00:27]} 29. Ng3 {[%clk 0:01:12]}  Rxd5 {[%clk 0:00:26]} 30. Rc4 {[%clk 0:01:12]}  Rc5 {[%clk 0:00:20]} 31. Rd4 {[%clk 0:01:09]}  f5 {[%clk 0:00:20]} 32. Rd6+ {[%clk 0:01:08]}  Kh7 {[%clk 0:00:20]} 33. Nh5 {[%clk 0:01:07]}  Bc8 {[%clk 0:00:11]} 34. Nf6+ {[%clk 0:01:00]}  Kg7 {[%clk 0:00:11]} 35. Nd5 {[%clk 0:00:58]}  f4 {[%clk 0:00:07]} 36. Ne7 {[%clk 0:00:54]}  Rc1+ {[%clk 0:00:03]} 37. Kh2 {[%clk 0:00:53]}  Rc2 {[%clk 0:00:04]} 38. Nxc8 {[%clk 0:00:51]}  Rxc8 {[%clk 0:00:05]} 39. Re6 {[%clk 0:00:52]}  Rc2 {[%clk 0:00:04]} 40. Rxe4 {[%clk 0:00:51]}  Rxa2 {[%clk 0:00:04]} 41. f3 {[%clk 0:00:51]}  Rb2 {[%clk 0:00:02]} 42. Re7+ {[%clk 0:00:50]}  Kg6 {[%clk 0:00:02]} 43. Rxa7 {[%clk 0:00:49]}  Rxb3 {[%clk 0:00:03]} 44. h4 {[%clk 0:00:49]}  gxh4 {[%clk 0:00:01]} 45. Kh3 {[%clk 0:00:50]}  Rb2 {[%clk 0:00:02]} 46. Rc7 {[%clk 0:00:48]}  b5 {[%clk 0:00:02]} 47. Rc6+ {[%clk 0:00:49]}  Kg5 {[%clk 0:00:02]} 48. Rc5+ {[%clk 0:00:49]}  Kg6 {[%clk 0:00:03]} 49. Kxh4 {[%clk 0:00:46]}  b4 {[%clk 0:00:00]} 50. Kg4 {[%clk 0:00:43]} 1-0


[Site "https://www.chess.com"]

[Event "Titled Tuesday Blitz November 07 Early 2023"]
[White "Adewumi, Tanitoluwa"]
[Black "Matveeva, Olga"]
[WhiteFideId "30966396"]
[BlackFideId "24107018"]
[WhiteElo "2615"]
[BlackElo "2410"]
[Result "1-0"]
[Round "3"]
[TimeControl "180+1"]
[Date "2023.11.07"]
[WhiteClock "0:00:03"]
[BlackClock "0:00:01"]
[Board "134"]

1. e4 {[%clk 0:02:51]}  c6 {[%clk 0:02:59]} 2. Nc3 {[%clk 0:02:45]}  d5 {[%clk 0:03:00]} 3. Nf3 {[%clk 0:02:45]}  dxe4 {[%clk 0:02:55]} 4. Nxe4 {[%clk 0:02:43]}  Nf6 {[%clk 0:02:55]} 5. Nxf6+ {[%clk 0:02:34]}  exf6 {[%clk 0:02:56]} 6. d4 {[%clk 0:02:33]}  Bd6 {[%clk 0:02:55]} 7. Bd3 {[%clk 0:02:31]}  O-O {[%clk 0:02:53]} 8. O-O {[%clk 0:02:29]}  Bg4 {[%clk 0:02:53]} 9. h3 {[%clk 0:02:29]}  Bh5 {[%clk 0:02:53]} 10. c3 {[%clk 0:02:29]}  Nd7 {[%clk 0:02:52]} 11. Be3 {[%clk 0:02:27]}  Re8 {[%clk 0:02:51]} 12. Re1 {[%clk 0:02:28]}  Rc8 {[%clk 0:02:48]} 13. Qb3 {[%clk 0:02:27]}  Qc7 {[%clk 0:02:40]} 14. Nh4 {[%clk 0:02:19]}  c5 {[%clk 0:02:36]} 15. Nf5 {[%clk 0:01:57]}  cxd4 {[%clk 0:02:12]} 16. Nxd6 {[%clk 0:01:25]}  Qxd6 {[%clk 0:02:11]} 17. Bxd4 {[%clk 0:01:04]}  Ne5 {[%clk 0:01:51]} 18. Bf5 {[%clk 0:00:56]}  Rcd8 {[%clk 0:01:30]} 19. Qxb7 {[%clk 0:00:36]}  Rb8 {[%clk 0:01:25]} 20. Qe4 {[%clk 0:00:22]}  Nf3+ {[%clk 0:01:18]} 21. gxf3 {[%clk 0:00:12]}  Rxe4 {[%clk 0:01:18]} 22. fxe4 {[%clk 0:00:10]}  g6 {[%clk 0:01:15]} 23. e5 {[%clk 0:00:10]}  Qa6 {[%clk 0:00:59]} 24. Be4 {[%clk 0:00:02]}  f5 {[%clk 0:00:57]} 25. Bd5 {[%clk 0:00:02]}  Re8 {[%clk 0:00:50]} 26. c4 {[%clk 0:00:01]}  f4 {[%clk 0:00:47]} 27. Rac1 {[%clk 0:00:01]}  f3 {[%clk 0:00:46]} 28. Rc3 {[%clk 0:00:01]}  Qxa2 {[%clk 0:00:44]} 29. e6 {[%clk 0:00:01]}  fxe6 {[%clk 0:00:38]} 30. Rxe6 {[%clk 0:00:02]}  Rxe6 {[%clk 0:00:33]} 31. Bxe6+ {[%clk 0:00:03]}  Kf8 {[%clk 0:00:32]} 32. Bc5+ {[%clk 0:00:03]}  Ke8 {[%clk 0:00:28]} 33. Re3 {[%clk 0:00:02]}  Qb1+ {[%clk 0:00:26]} 34. Kh2 {[%clk 0:00:03]}  Qf1 {[%clk 0:00:19]} 35. Kg3 {[%clk 0:00:02]}  Qg2+ {[%clk 0:00:17]} 36. Kf4 {[%clk 0:00:02]}  g5+ {[%clk 0:00:16]} 37. Kf5 {[%clk 0:00:02]}  Kd8 {[%clk 0:00:07]} 38. Rd3+ {[%clk 0:00:01]}  Kc7 {[%clk 0:00:06]} 39. Bd6+ {[%clk 0:00:02]}  Kc6 {[%clk 0:00:05]} 40. Bg3 {[%clk 0:00:02]}  Qxh3+ {[%clk 0:00:04]} 41. Ke5 {[%clk 0:00:02]}  Qf1 {[%clk 0:00:02]} 42. Bd7+ {[%clk 0:00:02]}  Kc7 {[%clk 0:00:02]} 43. Ke6+ {[%clk 0:00:02]}  Kb7 {[%clk 0:00:02]} 44. Rb3+ {[%clk 0:00:01]}  Ka6 {[%clk 0:00:02]} 45. Bc8+ {[%clk 0:00:01]}  Ka5 {[%clk 0:00:02]} 46. Bc7+ {[%clk 0:00:02]}  Ka4 {[%clk 0:00:02]} 47. Ra3+ {[%clk 0:00:02]}  Kb4 {[%clk 0:00:02]} 48. Bd6+ {[%clk 0:00:03]}  Kxc4 {[%clk 0:00:02]} 49. Ba6+ {[%clk 0:00:04]}  Kd4 {[%clk 0:00:02]} 50. Bxf1 {[%clk 0:00:04]}  g4 {[%clk 0:00:02]} 51. Be5+ {[%clk 0:00:03]}  Ke4 {[%clk 0:00:01]} 52. Re3# {[%clk 0:00:03]} 1-0


[Site "https://www.chess.com"]

[Event "Titled Tuesday Blitz November 07 Early 2023"]
[White "Goldin, Roman"]
[Black "Lamaze, Simon"]
[WhiteFideId "2803860"]
[BlackFideId "36069264"]
[WhiteElo "2402"]
[BlackElo "2611"]
[Result "0-1"]
[Round "3"]
[TimeControl "180+1"]
[Date "2023.11.07"]
[WhiteClock "0:00:00"]
[BlackClock "0:00:15"]
[Board "137"]

1. e4 {[%clk 0:02:59]}  c6 {[%clk 0:02:52]} 2. d4 {[%clk 0:02:56]}  d5 {[%clk 0:02:53]} 3. f3 {[%clk 0:02:56]}  e6 {[%clk 0:02:53]} 4. Nc3 {[%clk 0:02:55]}  Bb4 {[%clk 0:02:52]} 5. a3 {[%clk 0:02:52]}  Ba5 {[%clk 0:02:51]} 6. Bf4 {[%clk 0:02:33]}  Nd7 {[%clk 0:02:49]} 7. Bd3 {[%clk 0:02:28]}  Ne7 {[%clk 0:02:47]} 8. Ne2 {[%clk 0:02:28]}  b5 {[%clk 0:02:46]} 9. O-O {[%clk 0:02:27]}  Bb6 {[%clk 0:02:44]} 10. exd5 {[%clk 0:02:16]}  exd5 {[%clk 0:02:27]} 11. Kh1 {[%clk 0:02:08]}  O-O {[%clk 0:02:14]} 12. Qd2 {[%clk 0:02:07]}  Ng6 {[%clk 0:02:12]} 13. Bg5 {[%clk 0:01:42]}  f6 {[%clk 0:02:12]} 14. Be3 {[%clk 0:01:40]}  Re8 {[%clk 0:02:12]} 15. Ng3 {[%clk 0:01:38]}  Ndf8 {[%clk 0:02:12]} 16. Rfe1 {[%clk 0:01:26]}  Be6 {[%clk 0:02:04]} 17. a4 {[%clk 0:01:19]}  b4 {[%clk 0:02:04]} 18. Nce2 {[%clk 0:01:17]}  a5 {[%clk 0:02:04]} 19. Nc1 {[%clk 0:01:11]}  Qd7 {[%clk 0:01:57]} 20. Nb3 {[%clk 0:01:11]}  Nh4 {[%clk 0:01:54]} 21. c3 {[%clk 0:01:03]}  bxc3 {[%clk 0:01:52]} 22. Qxc3 {[%clk 0:01:03]}  Nfg6 {[%clk 0:01:26]} 23. Rac1 {[%clk 0:01:02]}  Nxg2 {[%clk 0:01:10]} 24. Kxg2 {[%clk 0:01:00]}  Nh4+ {[%clk 0:01:10]} 25. Kf2 {[%clk 0:00:58]}  Bf7 {[%clk 0:00:50]} 26. Bf1 {[%clk 0:00:35]}  Rac8 {[%clk 0:00:40]} 27. Nc5 {[%clk 0:00:33]}  Qd6 {[%clk 0:00:34]} 28. Qd2 {[%clk 0:00:32]}  g5 {[%clk 0:00:33]} 29. Bh3 {[%clk 0:00:30]}  Rc7 {[%clk 0:00:28]} 30. Rg1 {[%clk 0:00:29]}  Rce7 {[%clk 0:00:28]} 31. Rc3 {[%clk 0:00:24]}  Bg6 {[%clk 0:00:23]} 32. Qc1 {[%clk 0:00:17]}  h6 {[%clk 0:00:16]} 33. Ne6 {[%clk 0:00:08]}  Rxe6 {[%clk 0:00:15]} 34. Bxe6+ {[%clk 0:00:06]}  Rxe6 {[%clk 0:00:16]} 35. Re1 {[%clk 0:00:04]}  Nf5 {[%clk 0:00:14]} 36. Nxf5 {[%clk 0:00:02]}  Qxh2+ {[%clk 0:00:14]} 37. Kf1 {[%clk 0:00:02]}  Bxf5 {[%clk 0:00:15]} 38. Qd2 {[%clk 0:00:00]}  Bh3+ {[%clk 0:00:15]} 0-1


[Site "https://www.chess.com"]

[Event "Titled Tuesday Blitz November 07 Early 2023"]
[White "Ovezdurdyyeva, Jemal"]
[Black "Golubev, Mikhail"]
[WhiteFideId "14001888"]
[BlackFideId "14100983"]
[WhiteElo "2364"]
[BlackElo "2608"]
[Result "1/2-1/2"]
[Round "3"]
[TimeControl "180+1"]
[Date "2023.11.07"]
[WhiteClock "0:00:14"]
[BlackClock "0:00:06"]
[Board "139"]

1. e4 {[%clk 0:03:00]}  c5 {[%clk 0:02:59]} 2. Nf3 {[%clk 0:03:00]}  d6 {[%clk 0:03:00]} 3. c3 {[%clk 0:02:59]}  Nf6 {[%clk 0:02:59]} 4. Bd3 {[%clk 0:02:58]}  Bg4 {[%clk 0:02:56]} 5. h3 {[%clk 0:02:56]}  Bxf3 {[%clk 0:02:56]} 6. Qxf3 {[%clk 0:02:57]}  Nc6 {[%clk 0:02:56]} 7. Qe2 {[%clk 0:02:49]}  g6 {[%clk 0:02:53]} 8. O-O {[%clk 0:02:48]}  Bg7 {[%clk 0:02:53]} 9. Bc2 {[%clk 0:02:48]}  O-O {[%clk 0:02:53]} 10. d3 {[%clk 0:02:48]}  b5 {[%clk 0:02:48]} 11. Be3 {[%clk 0:02:46]}  b4 {[%clk 0:02:41]} 12. d4 {[%clk 0:02:21]}  bxc3 {[%clk 0:02:38]} 13. bxc3 {[%clk 0:02:21]}  cxd4 {[%clk 0:02:36]} 14. cxd4 {[%clk 0:02:20]}  Nd7 {[%clk 0:02:32]} 15. Rd1 {[%clk 0:02:17]}  Rc8 {[%clk 0:02:27]} 16. Na3 {[%clk 0:02:03]}  Qa5 {[%clk 0:02:07]} 17. Nc4 {[%clk 0:02:02]}  Qc3 {[%clk 0:02:07]} 18. Bb3 {[%clk 0:02:00]}  Qb4 {[%clk 0:01:38]} 19. Rac1 {[%clk 0:01:50]}  Nb6 {[%clk 0:01:36]} 20. Nxb6 {[%clk 0:01:29]}  axb6 {[%clk 0:01:35]} 21. Qf3 {[%clk 0:01:24]}  Nxd4 {[%clk 0:01:16]} 22. Bxd4 {[%clk 0:00:55]}  Rxc1 {[%clk 0:01:12]} 23. Rxc1 {[%clk 0:00:54]}  Bxd4 {[%clk 0:01:04]} 24. a3 {[%clk 0:00:48]}  Qd2 {[%clk 0:00:52]} 25. Rc2 {[%clk 0:00:27]}  Qe1+ {[%clk 0:00:49]} 26. Kh2 {[%clk 0:00:27]}  e6 {[%clk 0:00:42]} 27. g3 {[%clk 0:00:23]}  Qa5 {[%clk 0:00:36]} 28. a4 {[%clk 0:00:16]}  Bc5 {[%clk 0:00:29]} 29. Kg2 {[%clk 0:00:12]}  Qa8 {[%clk 0:00:24]} 30. h4 {[%clk 0:00:11]}  Qd8 {[%clk 0:00:22]} 31. h5 {[%clk 0:00:11]}  Qg5 {[%clk 0:00:22]} 32. hxg6 {[%clk 0:00:11]}  hxg6 {[%clk 0:00:22]} 33. Rc4 {[%clk 0:00:11]}  Kg7 {[%clk 0:00:21]} 34. Qf4 {[%clk 0:00:03]}  Qxf4 {[%clk 0:00:17]} 35. gxf4 {[%clk 0:00:04]}  Rh8 {[%clk 0:00:17]} 36. Rc3 {[%clk 0:00:04]}  Kf6 {[%clk 0:00:17]} 37. Kg3 {[%clk 0:00:04]}  Rh1 {[%clk 0:00:16]} 38. Rc2 {[%clk 0:00:04]}  Re1 {[%clk 0:00:16]} 39. Kf3 {[%clk 0:00:03]}  Ke7 {[%clk 0:00:16]} 40. Bc4 {[%clk 0:00:03]}  f5 {[%clk 0:00:16]} 41. exf5 {[%clk 0:00:02]}  gxf5 {[%clk 0:00:16]} 42. Re2 {[%clk 0:00:02]}  Rxe2 {[%clk 0:00:15]} 43. Kxe2 {[%clk 0:00:03]}  d5 {[%clk 0:00:15]} 44. Bb5 {[%clk 0:00:03]}  Kd6 {[%clk 0:00:15]} 45. Kf3 {[%clk 0:00:03]}  Ba3 {[%clk 0:00:15]} 46. Ke2 {[%clk 0:00:03]}  Bc1 {[%clk 0:00:15]} 47. Kf3 {[%clk 0:00:03]}  d4 {[%clk 0:00:11]} 48. Bd3 {[%clk 0:00:03]}  e5 {[%clk 0:00:10]} 49. fxe5+ {[%clk 0:00:03]}  Kxe5 {[%clk 0:00:10]} 50. Ke2 {[%clk 0:00:04]}  Bh6 {[%clk 0:00:10]} 51. Bb5 {[%clk 0:00:05]}  Bg5 {[%clk 0:00:10]} 52. Bd3 {[%clk 0:00:05]}  Be7 {[%clk 0:00:10]} 53. Bb5 {[%clk 0:00:06]}  Kf4 {[%clk 0:00:10]} 54. Bd3 {[%clk 0:00:07]}  Bc5 {[%clk 0:00:10]} 55. Bb5 {[%clk 0:00:07]}  Kg4 {[%clk 0:00:10]} 56. f3+ {[%clk 0:00:08]}  Kg3 {[%clk 0:00:10]} 57. Bd3 {[%clk 0:00:09]}  Kf4 {[%clk 0:00:11]} 58. Bb5 {[%clk 0:00:09]}  Ke5 {[%clk 0:00:11]} 59. Bd3 {[%clk 0:00:10]}  Kf4 {[%clk 0:00:10]} 60. Bb5 {[%clk 0:00:11]}  Bf8 {[%clk 0:00:10]} 61. Bd3 {[%clk 0:00:11]}  Bg7 {[%clk 0:00:10]} 62. Bb5 {[%clk 0:00:12]}  Ke5 {[%clk 0:00:10]} 63. Bd3 {[%clk 0:00:12]}  f4 {[%clk 0:00:07]} 64. Bb5 {[%clk 0:00:10]}  Kd5 {[%clk 0:00:07]} 65. Bd3 {[%clk 0:00:10]}  Kc5 {[%clk 0:00:07]} 66. Bb5 {[%clk 0:00:11]}  Be5 {[%clk 0:00:06]} 67. Kd3 {[%clk 0:00:11]}  Bc7 {[%clk 0:00:05]} 68. Ke4 {[%clk 0:00:12]}  Bb8 {[%clk 0:00:05]} 69. Kd3 {[%clk 0:00:12]}  Bc7 {[%clk 0:00:05]} 70. Ke2 {[%clk 0:00:13]}  Bb8 {[%clk 0:00:05]} 71. Kd3 {[%clk 0:00:14]}  Bc7 {[%clk 0:00:06]} 1/2-1/2


[Site "https://www.chess.com"]

[Event "Titled Tuesday Blitz November 07 Early 2023"]
[White "Marchesich, Giovanni"]
[Black "Sharapov, Evgeny"]
[WhiteFideId "2824790"]
[BlackFideId "14103133"]
[WhiteElo "2364"]
[BlackElo "2605"]
[Result "0-1"]
[Round "3"]
[TimeControl "180+1"]
[Date "2023.11.07"]
[WhiteClock "0:01:30"]
[BlackClock "0:02:21"]
[Board "140"]

1. e4 {[%clk 0:03:00]}  c5 {[%clk 0:02:59]} 2. Nc3 {[%clk 0:02:59]}  Nc6 {[%clk 0:02:59]} 3. Nf3 {[%clk 0:02:59]}  e5 {[%clk 0:02:59]} 4. Bc4 {[%clk 0:02:59]}  Be7 {[%clk 0:02:59]} 5. d3 {[%clk 0:02:59]}  d6 {[%clk 0:03:00]} 6. Nd2 {[%clk 0:02:58]}  Nf6 {[%clk 0:02:59]} 7. Nf1 {[%clk 0:02:58]}  O-O {[%clk 0:02:59]} 8. Ne3 {[%clk 0:02:58]}  Nd7 {[%clk 0:03:00]} 9. a4 {[%clk 0:02:50]}  Nb6 {[%clk 0:02:59]} 10. O-O {[%clk 0:02:49]}  Nxc4 {[%clk 0:02:58]} 11. dxc4 {[%clk 0:02:49]}  Be6 {[%clk 0:02:58]} 12. b3 {[%clk 0:02:49]}  Kh8 {[%clk 0:02:57]} 13. Ncd5 {[%clk 0:02:47]}  Bg5 {[%clk 0:02:52]} 14. g3 {[%clk 0:02:39]}  f5 {[%clk 0:02:46]} 15. Nxf5 {[%clk 0:02:30]}  Bxc1 {[%clk 0:02:40]} 16. Nxg7 {[%clk 0:02:04]}  Kxg7 {[%clk 0:02:34]} 17. Rxc1 {[%clk 0:01:57]}  Bxd5 {[%clk 0:02:34]} 18. exd5 {[%clk 0:01:54]}  Nd4 {[%clk 0:02:34]} 19. f4 {[%clk 0:01:49]}  exf4 {[%clk 0:02:33]} 20. gxf4 {[%clk 0:01:46]}  Kh8 {[%clk 0:02:33]} 21. c3 {[%clk 0:01:46]}  Nf5 {[%clk 0:02:32]} 22. Qd3 {[%clk 0:01:45]}  Qh4 {[%clk 0:02:30]} 23. Kh1 {[%clk 0:01:44]}  Rae8 {[%clk 0:02:28]} 24. Rf3 {[%clk 0:01:33]}  Re1+ {[%clk 0:02:25]} 25. Rxe1 {[%clk 0:01:32]}  Qxe1+ {[%clk 0:02:24]} 26. Kg2 {[%clk 0:01:33]}  Rg8+ {[%clk 0:02:21]} 27. Rg3 {[%clk 0:01:30]} 0-1


[Site "https://www.chess.com"]

[Event "Titled Tuesday Blitz November 07 Early 2023"]
[White "Bodnaruk, Anastasia"]
[Black "Skaric, Djuro"]
[WhiteFideId "4181751"]
[BlackFideId "934569"]
[WhiteElo "2605"]
[BlackElo "2352"]
[Result "1-0"]
[Round "3"]
[TimeControl "180+1"]
[Date "2023.11.07"]
[WhiteClock "0:00:11"]
[BlackClock "0:01:27"]
[Board "141"]

1. e4 {[%clk 0:03:00]}  d6 {[%clk 0:03:00]} 2. d4 {[%clk 0:02:59]}  g6 {[%clk 0:02:59]} 3. Nc3 {[%clk 0:02:59]}  Bg7 {[%clk 0:03:00]} 4. Be3 {[%clk 0:02:57]}  Nf6 {[%clk 0:03:00]} 5. h3 {[%clk 0:02:53]}  Nc6 {[%clk 0:03:00]} 6. f4 {[%clk 0:02:46]}  O-O {[%clk 0:02:59]} 7. Nf3 {[%clk 0:02:43]}  a6 {[%clk 0:02:58]} 8. d5 {[%clk 0:02:38]}  Nb8 {[%clk 0:02:55]} 9. Bd3 {[%clk 0:02:38]}  c6 {[%clk 0:02:55]} 10. Bd4 {[%clk 0:02:14]}  cxd5 {[%clk 0:02:52]} 11. exd5 {[%clk 0:01:56]}  b5 {[%clk 0:02:51]} 12. O-O {[%clk 0:01:51]}  Bb7 {[%clk 0:02:50]} 13. Kh2 {[%clk 0:01:30]}  Nbd7 {[%clk 0:02:50]} 14. Ng5 {[%clk 0:01:15]}  h6 {[%clk 0:02:40]} 15. Nge4 {[%clk 0:01:13]}  Nxd5 {[%clk 0:02:37]} 16. Nxd5 {[%clk 0:01:11]}  Bxd5 {[%clk 0:02:37]} 17. Bxg7 {[%clk 0:01:10]}  Kxg7 {[%clk 0:02:36]} 18. f5 {[%clk 0:00:58]}  Ne5 {[%clk 0:02:23]} 19. f6+ {[%clk 0:00:55]}  exf6 {[%clk 0:02:22]} 20. Nxf6 {[%clk 0:00:55]}  Be6 {[%clk 0:02:19]} 21. Be4 {[%clk 0:00:40]}  Rc8 {[%clk 0:02:17]} 22. c3 {[%clk 0:00:37]}  Rc7 {[%clk 0:02:10]} 23. Qd2 {[%clk 0:00:32]}  Bf5 {[%clk 0:02:08]} 24. Rxf5 {[%clk 0:00:16]}  gxf5 {[%clk 0:01:37]} 25. Nh5+ {[%clk 0:00:15]}  Kg8 {[%clk 0:01:37]} 26. Qxh6 {[%clk 0:00:13]}  f6 {[%clk 0:01:37]} 27. Bd5+ {[%clk 0:00:11]}  Rff7 {[%clk 0:01:27]} 28. Qg7# {[%clk 0:00:11]} 1-0


[Site "https://www.chess.com"]

[Event "Titled Tuesday Blitz November 07 Early 2023"]
[White "Nasir, Zehn"]
[Black "Bokros, Albert"]
[WhiteFideId "2613239"]
[BlackFideId "710458"]
[WhiteElo "2602"]
[BlackElo "2341"]
[Result "1-0"]
[Round "3"]
[TimeControl "180+1"]
[Date "2023.11.07"]
[WhiteClock "0:01:00"]
[BlackClock "0:00:12"]
[Board "143"]

1. d4 {[%clk 0:03:00]}  d5 {[%clk 0:02:48]} 2. Bf4 {[%clk 0:03:01]}  Nf6 {[%clk 0:02:47]} 3. e3 {[%clk 0:03:01]}  c5 {[%clk 0:02:47]} 4. c3 {[%clk 0:03:01]}  Nc6 {[%clk 0:02:47]} 5. Nd2 {[%clk 0:03:01]}  Bf5 {[%clk 0:02:46]} 6. Qb3 {[%clk 0:03:00]}  Qb6 {[%clk 0:02:44]} 7. dxc5 {[%clk 0:02:38]}  Qxb3 {[%clk 0:02:43]} 8. axb3 {[%clk 0:02:39]}  e5 {[%clk 0:02:43]} 9. Bg3 {[%clk 0:02:39]}  Bxc5 {[%clk 0:02:43]} 10. b4 {[%clk 0:02:39]}  Bd6 {[%clk 0:02:40]} 11. b5 {[%clk 0:02:37]}  Ne7 {[%clk 0:02:40]} 12. Ngf3 {[%clk 0:02:30]}  Ng6 {[%clk 0:02:29]} 13. h4 {[%clk 0:02:24]}  h5 {[%clk 0:02:27]} 14. b6 {[%clk 0:02:17]}  a6 {[%clk 0:01:56]} 15. Nd4 {[%clk 0:02:17]}  exd4 {[%clk 0:01:52]} 16. Bxd6 {[%clk 0:02:18]}  dxc3 {[%clk 0:01:52]} 17. bxc3 {[%clk 0:02:13]}  Kd7 {[%clk 0:01:51]} 18. Bb4 {[%clk 0:02:07]}  Ne4 {[%clk 0:01:39]} 19. Nf3 {[%clk 0:02:02]}  f6 {[%clk 0:01:37]} 20. Nd4 {[%clk 0:01:59]}  Be6 {[%clk 0:01:35]} 21. Be2 {[%clk 0:01:38]}  Rac8 {[%clk 0:01:34]} 22. Ra3 {[%clk 0:01:36]}  Ne5 {[%clk 0:01:33]} 23. O-O {[%clk 0:01:18]}  Nc4 {[%clk 0:01:25]} 24. Ra2 {[%clk 0:01:16]}  Nxb6 {[%clk 0:01:18]} 25. Rd1 {[%clk 0:01:14]}  Nxc3 {[%clk 0:01:08]} 26. Bxc3 {[%clk 0:01:11]}  Rxc3 {[%clk 0:01:09]} 27. Rb2 {[%clk 0:01:10]}  Na4 {[%clk 0:00:18]} 28. Rxb7+ {[%clk 0:01:10]}  Kd6 {[%clk 0:00:17]} 29. Ra7 {[%clk 0:01:04]}  Rhc8 {[%clk 0:00:16]} 30. Rxa6+ {[%clk 0:01:03]}  R8c6 {[%clk 0:00:12]} 31. Nxc6 {[%clk 0:01:01]}  Rxc6 {[%clk 0:00:13]} 32. Rxa4 {[%clk 0:01:00]}  Ke5 {[%clk 0:00:12]} 33. Rad4 {[%clk 0:01:00]} 1-0


[Site "https://www.chess.com"]

[Event "Titled Tuesday Blitz November 07 Early 2023"]
[White "gpsji27"]
[Black "Perdomo, Carlos Andres"]
[BlackFideId "4400852"]
[WhiteElo "2334"]
[BlackElo "2600"]
[Result "0-1"]
[Round "3"]
[TimeControl "180+1"]
[Date "2023.11.07"]
[WhiteClock "0:00:05"]
[BlackClock "0:01:11"]
[Board "144"]

1. d4 {[%clk 0:03:00]}  d5 {[%clk 0:02:58]} 2. Nc3 {[%clk 0:03:01]}  Nf6 {[%clk 0:02:56]} 3. Bg5 {[%clk 0:02:59]}  Nbd7 {[%clk 0:02:55]} 4. Nf3 {[%clk 0:02:58]}  e6 {[%clk 0:02:53]} 5. e4 {[%clk 0:02:57]}  dxe4 {[%clk 0:02:51]} 6. Nxe4 {[%clk 0:02:56]}  Be7 {[%clk 0:02:52]} 7. Nxf6+ {[%clk 0:02:56]}  Nxf6 {[%clk 0:02:52]} 8. Bd3 {[%clk 0:02:56]}  b6 {[%clk 0:02:47]} 9. Qe2 {[%clk 0:02:56]}  Bb7 {[%clk 0:02:48]} 10. c3 {[%clk 0:02:56]}  O-O {[%clk 0:02:39]} 11. O-O-O {[%clk 0:02:50]}  Qd5 {[%clk 0:02:35]} 12. h4 {[%clk 0:02:48]}  h6 {[%clk 0:02:22]} 13. Bxf6 {[%clk 0:02:46]}  Bxf6 {[%clk 0:02:22]} 14. Bb1 {[%clk 0:02:45]}  Qh5 {[%clk 0:02:08]} 15. Be4 {[%clk 0:02:11]}  Bd5 {[%clk 0:01:51]} 16. Kb1 {[%clk 0:02:00]}  c5 {[%clk 0:01:45]} 17. dxc5 {[%clk 0:00:44]}  bxc5 {[%clk 0:01:41]} 18. Bxd5 {[%clk 0:00:36]}  exd5 {[%clk 0:01:40]} 19. g4 {[%clk 0:00:25]}  Qxg4 {[%clk 0:01:32]} 20. Rxd5 {[%clk 0:00:25]}  Rfe8 {[%clk 0:01:32]} 21. Qd3 {[%clk 0:00:20]}  c4 {[%clk 0:01:32]} 22. Qf5 {[%clk 0:00:18]}  Qg2 {[%clk 0:01:24]} 23. Rg1 {[%clk 0:00:15]}  Qxf2 {[%clk 0:01:24]} 24. Rd2 {[%clk 0:00:11]}  Qe3 {[%clk 0:01:18]} 25. Rdg2 {[%clk 0:00:10]}  Qe4+ {[%clk 0:01:18]} 26. Qxe4 {[%clk 0:00:10]}  Rxe4 {[%clk 0:01:19]} 27. Nd2 {[%clk 0:00:10]}  Rxh4 {[%clk 0:01:19]} 28. Rg4 {[%clk 0:00:09]}  Rxg4 {[%clk 0:01:19]} 29. Rxg4 {[%clk 0:00:10]}  h5 {[%clk 0:01:16]} 30. Rxc4 {[%clk 0:00:10]}  h4 {[%clk 0:01:17]} 31. Ne4 {[%clk 0:00:11]}  Be7 {[%clk 0:01:16]} 32. Nf2 {[%clk 0:00:11]}  g5 {[%clk 0:01:15]} 33. Rc7 {[%clk 0:00:12]}  Kf8 {[%clk 0:01:15]} 34. Ng4 {[%clk 0:00:11]}  a5 {[%clk 0:01:15]} 35. Rc6 {[%clk 0:00:11]}  Kg7 {[%clk 0:01:14]} 36. Rc7 {[%clk 0:00:11]}  Re8 {[%clk 0:01:13]} 37. Ra7 {[%clk 0:00:10]}  Bd8 {[%clk 0:01:13]} 38. Ra6 {[%clk 0:00:10]}  f5 {[%clk 0:01:12]} 39. Nf2 {[%clk 0:00:10]}  g4 {[%clk 0:01:13]} 40. Ra7+ {[%clk 0:00:10]}  Re7 {[%clk 0:01:11]} 41. Ra8 {[%clk 0:00:09]}  Bb6 {[%clk 0:01:10]} 42. Nd3 {[%clk 0:00:08]}  h3 {[%clk 0:01:11]} 43. Rb8 {[%clk 0:00:05]}  h2 {[%clk 0:01:11]} 0-1


[Site "https://www.chess.com"]